fUST/lending_fUST_20240216
["ID","MTS","AMOUNT","RATE_DAILY","PERIOD"]
[314147276,1708023038850,-1895.71,0.00028632,2]
[314147277,1708023038859,-500.0,0.00028632,2]
[314147278,1708023038868,-500.0,0.00028632,2]
[314147279,1708023038877,-500.0,0.00028632,2]
[314147280,1708023038886,-1237.71,0.00028632,2]
[314147281,1708023038895,-500.0,0.00028632,2]
[314147282,1708023038904,-1424.79,0.00028632,2]
[314147283,1708023038913,-500.0,0.00028632,2]
[314147284,1708023038923,-500.0,0.00028632,2]
[314147285,1708023038932,-2065.46,0.00028632,2]
[314147286,1708023038942,-500.0,0.00028632,2]
[314147287,1708023038952,-500.0,0.00028632,2]
[314147288,1708023038962,-3199.03,0.00028632,2]
[314147289,1708023038971,-500.0,0.00028632,2]
[314147290,1708023038980,-500.0,0.00028632,2]
[314147291,1708023038989,-500.0,0.00028632,2]
[314147292,1708023038999,-500.0,0.00028632,2]
[314147293,1708023039009,-375.44487099,0.00028632,2]
[314147294,1708023039019,-500.0,0.00028632,2]
[314147295,1708023039030,-460.0,0.00028632,2]
[314147296,1708023039040,-500.0,0.00028632,2]
[314147297,1708023039050,-461.98217731,0.00028632,2]
[314147298,1708023039059,-368.37442533,0.00028632,2]
[314147299,1708023039069,-469.59646068,0.00028632,2]
[314147300,1708023039079,-500.0,0.00028632,2]
[314147301,1708023039088,-1898.53888876,0.00028632,2]
[314147302,1708023039098,-1898.53888876,0.00028632,2]
[314147303,1708023039107,-500.0,0.00028632,2]
[314147304,1708023039116,-1898.53888876,0.00028632,2]
[314147305,1708023039126,-1898.53888876,0.00028632,2]
[314147306,1708023039135,-473.94695713,0.00028632,2]
[314147307,1708023039143,-1898.53888876,0.00028632,2]
[314147308,1708023039153,-1898.53888876,0.00028632,2]
[314147309,1708023039161,-1898.53888876,0.00028632,2]
[314147310,1708023039171,-1898.53888876,0.00028632,2]
[314147311,1708023039181,-1898.53888876,0.00028632,2]
[314147312,1708023039190,-1898.53888876,0.00028632,2]
[314147313,1708023039199,-1898.53888876,0.00028632,2]
[314147314,1708023039208,-1898.53888876,0.00028632,2]
[314147315,1708023039218,-1898.53888876,0.00028632,2]
[314147316,1708023039228,-1898.53888876,0.00028632,2]
[314147317,1708023039237,-1898.53888876,0.00028632,2]
[314147318,1708023039247,-1898.53888876,0.00028632,2]
[314147319,1708023039257,-1898.53888876,0.00028632,2]
[314147320,1708023039266,-1898.53888876,0.00028632,2]
[314147321,1708023039278,-1898.53888876,0.00028632,2]
[314147322,1708023039287,-1898.53888876,0.00028632,2]
[314147323,1708023039297,-1898.53888876,0.00028632,2]
[314147324,1708023039306,-1898.53888876,0.00028632,2]
[314147325,1708023039315,-1898.53888876,0.00028632,2]
[314147326,1708023039324,-1898.53888876,0.00028632,2]
[314147327,1708023039334,-1898.53888876,0.00028632,2]
[314147328,1708023039343,-1898.53888876,0.00028632,2]
[314147329,1708023039353,-1898.53888876,0.00028632,2]
[314147330,1708023039361,-1898.53888876,0.00028632,2]
[314147331,1708023039370,-1898.53888876,0.00028632,2]
[314147332,1708023039380,-1898.53888876,0.00028632,2]
[314147333,1708023039390,-1898.53888876,0.00028632,2]
[314147334,1708023039399,-1898.53888876,0.00028632,2]
[314147335,1708023039408,-1898.53888876,0.00028632,2]
[314147336,1708023039418,-1898.53888876,0.00028632,2]
[314147337,1708023039432,-1898.53888876,0.00028632,2]
[314147338,1708023039442,-1898.53888876,0.00028632,2]
[314147339,1708023039452,-1898.53888876,0.00028632,2]
[314147340,1708023039462,-1898.53888876,0.00028632,2]
[314147341,1708023039474,-1898.53888876,0.00028632,2]
[314147342,1708023039484,-1898.53888876,0.00028632,2]
[314147343,1708023039494,-1898.53888876,0.00028632,2]
[314147344,1708023039505,-1898.53888876,0.00028632,2]
[314147345,1708023039516,-1898.53888876,0.00028632,2]
[314147346,1708023039531,-1898.53888876,0.00028632,2]
[314147347,1708023039542,-1898.53888876,0.00028632,2]
[314147348,1708023039554,-1898.53888876,0.00028632,2]
[314147349,1708023039567,-1898.53888876,0.00028632,2]
[314147350,1708023039577,-1898.53888876,0.00028632,2]
[314147351,1708023039588,-1898.53888876,0.00028632,2]
[314147352,1708023039598,-1898.53888876,0.00028632,2]
[314147353,1708023039607,-1898.53888876,0.00028632,2]
[314147354,1708023039617,-1898.53888876,0.00028632,2]
[314147355,1708023039627,-1898.53888876,0.00028632,2]
[314147356,1708023039638,-1898.53888876,0.00028632,2]
[314147357,1708023039647,-1847.13,0.00028633,2]
[314147358,1708023039656,-500.0,0.00028633,2]
[314147359,1708023039667,-500.0,0.00028633,2]
[314147360,1708023039677,-500.0,0.00028633,2]
[314147361,1708023039687,-500.0,0.00028633,2]
[314147362,1708023039696,-500.0,0.00028633,2]
[314147363,1708023039705,-500.0,0.00028633,2]
[314147364,1708023039714,-500.0,0.00028633,2]
[314147365,1708023039724,-516.94149683,0.00028633,2]
[314147366,1708023039733,-500.0,0.00028633,2]
[314147367,1708023039742,-989.49,0.00028633,2]
[314147368,1708023039751,-500.0,0.00028633,2]
[314147369,1708023039763,-385.67452166,0.00028633,2]
[314147370,1708023039773,-746.79,0.00028633,2]
[314147371,1708023039788,-500.0,0.00028633,2]
[314147372,1708023039797,-500.0,0.00028633,2]
[314147373,1708023039807,-596.22880641,0.00028633,2]
[314147374,1708023039816,-500.0,0.00028633,2]
[314147375,1708023039826,-266.15669203,0.00028633,2]
[314147376,1708023039836,-500.0,0.00028633,2]
[314147377,1708023039846,-2720.81,0.00028633,2]
[314147378,1708023039855,-500.0,0.00028633,2]
[314147379,1708023039866,-1742.09,0.00028633,2]
[314147380,1708023039876,-500.0,0.00028633,2]
[314147381,1708023039885,-609.52,0.00028633,2]
[314147382,1708023039895,-9447.78,0.00028633,2]
[314147383,1708023039904,-500.0,0.00028633,2]
[314147384,1708023039913,-11086.49,0.00028633,2]
[314147385,1708023039922,-583.6952767,0.00028633,2]
[314147386,1708023039932,-4188.64,0.00028633,2]
[314147387,1708023039942,-500.0,0.00028633,2]
[314147388,1708023039951,-2963.66,0.00028633,2]
[314147389,1708023039961,-500.0,0.00028633,2]
[314147390,1708023039970,-3723.72,0.00028633,2]
[314147391,1708023039979,-1000.0,0.00028633,2]
[314147392,1708023039989,-2101.9,0.00028633,2]
[314147393,1708023039998,-500.0,0.00028633,2]
[314147394,1708023040008,-500.0,0.00028633,2]
[314147395,1708023040017,-500.0,0.00028633,2]
[314147396,1708023040027,-3045.71,0.00028633,2]
[314147397,1708023040039,-390.0,0.00028633,2]
[314147398,1708023040048,-5480.54845965,0.00028633,10]
[314147399,1708023040057,-250.0,0.00028633,2]
[314147400,1708023040067,-547.39344744,0.00028633,2]
[314147401,1708023040077,-500.0,0.00028633,2]
[314147402,1708023040086,-500.0,0.00028633,2]
[314147403,1708023040096,-500.0,0.00028634,2]
[314147404,1708023040106,-500.0,0.00028634,2]
[314147405,1708023040115,-500.0,0.00028634,2]
[314147406,1708023040125,-500.0,0.00028634,2]
[314147407,1708023040135,-500.0,0.00028634,2]
[314147408,1708023040144,-500.0,0.00028634,2]
[314147409,1708023040154,-500.0,0.00028634,2]
[314147410,1708023040163,-1424.20771006,0.00028635,3]
[314147411,1708023040173,-276000.0,0.00028635,2]
[314147412,1708023040182,-500.0,0.00028716,2]
[314147413,1708023040191,-530.95094477,0.00028717,2]
[314147414,1708023040200,-500.0,0.00028717,2]
[314147415,1708023040210,-404.84073199,0.00028717,2]
[314147416,1708023040220,-946.12,0.00028717,2]
[314147417,1708023040229,-1000.0,0.00028717,5]
[314147418,1708023040239,-500.0,0.00028717,2]
[314147419,1708023040248,-500.0,0.00028717,2]
[314147420,1708023040258,-1947.81,0.00028717,2]
[314147421,1708023040267,-500.0,0.00028717,2]
[314147422,1708023040349,-500.0,0.00028717,2]
[314147423,1708023040359,-506.57653874,0.00028717,2]
[314147424,1708023040368,-600.56,0.00028717,2]
[314147425,1708023040377,-495.88183261,0.00028717,2]
[314147426,1708023040386,-1109.46,0.00028717,2]
[314147427,1708023040396,-894.98,0.00028717,2]
[314147428,1708023040405,-500.0,0.00028717,2]
[314147429,1708023040414,-500.0,0.00028717,2]
[314147430,1708023040423,-500.0,0.00028717,2]
[314147431,1708023040432,-500.0,0.00028717,2]
[314147432,1708023040445,-500.0,0.00028717,2]
[314147433,1708023040455,-500.0,0.00028717,2]
[314147434,1708023040464,-500.0,0.00028717,2]
[314147435,1708023040474,-18567.49,0.00028717,2]
[314147436,1708023040483,-500.0,0.00028717,2]
[314147437,1708023040491,-935.84,0.00028717,2]
[314147438,1708023040501,-500.0,0.00028717,2]
[314147439,1708023040510,-426.08,0.00028717,2]
[314147440,1708023040520,-500.0,0.00028717,2]
[314147441,1708023040530,-500.0,0.00028717,2]
[314147442,1708023040539,-16426.36,0.00028717,2]
[314147443,1708023040549,-536.17297969,0.00028717,2]
[314147444,1708023040558,-500.0,0.00028717,2]
[314147445,1708023040567,-6241.88,0.00028717,2]
[314147446,1708023040577,-500.0,0.00028717,2]
[314147447,1708023040586,-509.43438541,0.00028717,2]
[314147448,1708023040596,-442.04517344,0.00028717,2]
[314147449,1708023040606,-2340.4,0.00028717,2]
[314147450,1708023040615,-500.0,0.00028717,2]
[314147451,1708023040624,-556.41,0.00028717,2]
[314147452,1708023040633,-505.73434112,0.00028717,2]
[314147453,1708023040642,-500.0,0.00028717,2]
[314147454,1708023040651,-500.0,0.00028718,2]
[314147456,1708023040660,-500.0,0.00028718,2]
[314147457,1708023040670,-500.0,0.00028718,2]
[314147458,1708023040678,-500.0,0.00028718,2]
[314147459,1708023040688,-514.91981209,0.00028718,2]
[314147460,1708023040698,-506.95127322,0.00028718,2]
[314147461,1708023040707,-500.0,0.00028718,2]
[314147462,1708023040716,-500.0,0.00028718,2]
[314147463,1708023040725,-500.0,0.00028718,2]
[314147464,1708023040734,-592.75,0.00028718,2]
[314147465,1708023040744,-500.0,0.00028718,2]
[314147466,1708023040754,-500.0,0.00028718,2]
[314147467,1708023040763,-500.0,0.00028718,2]
[314147468,1708023040772,-553.86325545,0.00028718,2]
[314147469,1708023040783,-500.0,0.00028718,2]
[314147470,1708023040792,-504.03989668,0.00028718,2]
[314147471,1708023040802,-500.0,0.00028718,2]
[314147472,1708023040812,-500.0,0.00028718,2]
[314147473,1708023040821,-901.11,0.00028718,2]
[314147474,1708023040831,-500.0,0.00028718,2]
[314147475,1708023040840,-500.0,0.00028718,2]
[314147476,1708023040849,-500.0,0.00028718,2]
[314147477,1708023040859,-393.93306636,0.00028718,2]
[314147478,1708023040868,-582.68564277,0.00028718,2]
[314147479,1708023040877,-500.0,0.00028718,2]
[314147480,1708023040887,-500.0,0.00028718,2]
[314147481,1708023040896,-638.34637956,0.00028718,2]
[314147482,1708023040906,-500.0,0.00028718,2]
[314147483,1708023040915,-512.21825011,0.00028718,2]
[314147484,1708023040925,-500.0,0.00028718,2]
[314147485,1708023040934,-506.44463582,0.00028718,2]
[314147486,1708023040943,-500.0,0.00028718,2]
[314147487,1708023040953,-719.02,0.00028718,2]
[314147488,1708023040962,-512.11252895,0.00028718,2]
[314147489,1708023040971,-557.13823248,0.00028718,2]
[314147490,1708023040980,-500.0,0.00028718,2]
[314147491,1708023040989,-507.50151569,0.00028718,2]
[314147492,1708023040998,-500.0,0.00028718,2]
[314147493,1708023041007,-500.0,0.00028718,2]
[314147494,1708023041017,-511.75666933,0.00028718,2]
[314147495,1708023041026,-500.0,0.00028718,2]
[314147496,1708023041037,-507.21096205,0.00028718,2]
[314147497,1708023041046,-500.0,0.00028718,2]
[314147498,1708023041055,-500.0,0.00028718,2]
[314147499,1708023041064,-437.52618809,0.00028718,2]
[314147500,1708023041074,-500.0,0.00028718,2]
[314147501,1708023041083,-328.32247603,0.00028718,2]
[314147502,1708023041092,-500.0,0.00028718,2]
[314147503,1708023041101,-506.84728892,0.00028718,2]
[314147504,1708023041110,-542.87,0.00028718,2]
[314147505,1708023041119,-500.0,0.00028718,2]
[314147506,1708023041128,-260.37284919,0.00028718,2]
[314147507,1708023041137,-500.0,0.00028718,2]
[314147508,1708023041147,-504.12580923,0.00028718,2]
[314147509,1708023041156,-500.0,0.00028718,2]
[314147510,1708023041166,-500.0,0.00028718,2]
[314147511,1708023041175,-516.26871262,0.00028718,2]
[314147512,1708023041184,-500.0,0.00028718,2]
[314147513,1708023041193,-500.0,0.00028718,2]
[314147514,1708023041203,-516.39323085,0.00028718,2]
[314147515,1708023041211,-500.0,0.00028718,2]
[314147516,1708023041221,-500.0,0.00028718,2]
[314147517,1708023041231,-500.0,0.00028718,2]
[314147518,1708023041240,-500.0,0.00028718,2]
[314147519,1708023041250,-501.76829055,0.00028718,2]
[314147520,1708023041259,-500.0,0.00028718,2]
[314147521,1708023041268,-710.56,0.00028718,2]
[314147522,1708023041279,-746.56,0.00028718,2]
[314147523,1708023041288,-500.0,0.00028718,2]
[314147524,1708023041298,-500.0,0.00028718,2]
[314147525,1708023041306,-500.0,0.00028718,2]
[314147526,1708023041315,-500.0,0.00028718,2]
[314147527,1708023041324,-510.68739051,0.00028718,2]
[314147528,1708023041334,-505.49748624,0.00028718,2]
[314147529,1708023041344,-164.95275366,0.00028718,2]
[314147530,1708023041353,-500.0,0.00028718,2]
[314147531,1708023041362,-500.0,0.00028718,2]
[314147532,1708023041371,-500.0,0.00028718,2]
[314147533,1708023041380,-412.87599848,0.00028718,2]
[314147534,1708023041390,-505.61326552,0.00028718,2]
[314147535,1708023041399,-413.84859756,0.00028718,2]
[314147536,1708023041407,-3312.44,0.00028718,2]
[314147537,1708023041417,-660.38,0.00028718,2]
[314147538,1708023041429,-171.3,0.00028718,2]
[314147539,1708023041439,-2144.83,0.00028718,2]
[314147540,1708023041447,-662.29,0.00028718,2]
[314147541,1708023041457,-500.0,0.00028718,2]
[314147542,1708023041467,-500.0,0.00028718,2]
[314147544,1708023041477,-500.0,0.00028718,2]
[314147546,1708023041487,-3379.95,0.00028718,2]
[314147547,1708023041496,-397.46061973,0.00028718,2]
[314147549,1708023041506,-500.0,0.00028718,2]
[314147550,1708023041516,-500.0,0.00028718,2]
[314147551,1708023041524,-535.87278273,0.00028718,2]
[314147552,1708023041536,-158.51638676,0.00028718,2]
[314147554,1708023041545,-502.92808677,0.00028718,2]
[314147555,1708023041554,-500.0,0.00028718,2]
[314147556,1708023041563,-604.93952717,0.00028718,2]
[314147557,1708023041572,-511.04327284,0.00028718,2]
[314147558,1708023041581,-500.0,0.00028718,2]
[314147559,1708023041590,-503.69014299,0.00028718,2]
[314147560,1708023041599,-339.19159002,0.00028718,2]
[314147562,1708023041608,-500.0,0.00028718,2]
[314147564,1708023041617,-168.47470284,0.00028718,2]
[314147565,1708023041626,-500.0,0.00028718,2]
[314147567,1708023041635,-500.0,0.00028718,2]
[314147569,1708023041644,-208.6232261,0.00028718,2]
[314147571,1708023041653,-500.0,0.00028718,2]
[314147572,1708023041662,-582.91,0.00028718,2]
[314147574,1708023041671,-500.0,0.00028718,2]
[314147578,1708023041750,-517.6852369,0.00028718,15]
[314147579,1708023041759,-500.0,0.00028718,2]
[314147580,1708023041769,-500.0,0.00028718,2]
[314147581,1708023041780,-500.0,0.00028718,2]
[314147583,1708023041789,-501.56566972,0.00028718,2]
[314147584,1708023041798,-2059.32,0.00028718,2]
[314147586,1708023041807,-500.0,0.00028718,2]
[314147588,1708023041816,-500.0,0.00028718,2]
[314147590,1708023041825,-520.94030356,0.00028718,2]
[314147591,1708023041835,-500.0,0.00028718,2]
[314147593,1708023041844,-500.0,0.00028718,2]
[314147594,1708023041853,-1053.81,0.00028718,2]
[314147595,1708023041862,-947.27,0.00028718,2]
[314147596,1708023041871,-500.0,0.00028718,2]
[314147597,1708023041880,-500.0,0.00028718,2]
[314147598,1708023041890,-500.0,0.00028718,2]
[314147599,1708023041899,-500.0,0.00028718,2]
[314147600,1708023041908,-465.89374938,0.00028718,2]
[314147601,1708023041917,-500.0,0.00028718,2]
[314147602,1708023041926,-500.0,0.00028718,2]
[314147603,1708023041935,-500.0,0.00028718,2]
[314147604,1708023041944,-500.0,0.00028718,2]
[314147605,1708023041954,-500.0,0.00028718,2]
[314147606,1708023041963,-500.0,0.00028718,2]
[314147607,1708023041972,-450.210329,0.00028718,2]
[314147608,1708023041982,-263.2000811,0.00028718,2]
[314147609,1708023041992,-500.0,0.00028718,2]
[314147610,1708023042001,-500.0,0.00028718,2]
[314147611,1708023042010,-532.59,0.00028718,2]
[314147612,1708023042019,-602.81264885,0.00028718,2]
[314147613,1708023042029,-500.0,0.00028718,2]
[314147614,1708023042038,-500.0,0.00028718,2]
[314147615,1708023042048,-50000.0,0.00028729,4]
[314147616,1708023042057,-500.0,0.00028733,2]
[314147617,1708023042066,-500.0,0.00028733,2]
[314147618,1708023042075,-500.0,0.00028733,2]
[314147619,1708023042084,-500.0,0.00028733,2]
[314147620,1708023042094,-746.56,0.00028733,2]
[314147621,1708023042103,-746.56,0.00028733,2]
[314147622,1708023042112,-746.56,0.00028733,2]
[314147623,1708023042122,-746.56,0.00028733,2]
[314147624,1708023042131,-746.56,0.00028733,2]
[314147625,1708023042141,-500.0,0.00028733,2]
[314147626,1708023042150,-500.0,0.00028733,2]
[314147627,1708023042159,-500.0,0.00028733,2]
[314147628,1708023042168,-500.0,0.00028733,2]
[314147629,1708023042177,-500.0,0.00028733,2]
[314147630,1708023042187,-347.51683518,0.00028734,2]
[314147631,1708023042196,-746.56,0.00028734,2]
[314147632,1708023042205,-746.56,0.00028734,2]
[314147633,1708023042216,-500.0,0.00028734,2]
[314147634,1708023042226,-500.0,0.00028734,2]
[314147635,1708023042238,-500.0,0.00028735,2]
[314147636,1708023042247,-500.0,0.00028735,2]
[314147637,1708023042257,-500.0,0.00028735,2]
[314147638,1708023042266,-519.75741861,0.00028735,2]
[314147639,1708023042275,-500.0,0.00028735,2]
[314147640,1708023042285,-396.51386456,0.00028735,2]
[314147641,1708023042294,-500.0,0.00028735,2]
[314147642,1708023042303,-502.92013251,0.00028735,2]
[314147643,1708023042313,-500.0,0.00028735,2]
[314147644,1708023042322,-500.0,0.00028767,2]
[314147645,1708023042331,-14797.83,0.00028768,2]
[314147646,1708023042340,-500.0,0.00028768,2]
[314147647,1708023042350,-1428.96,0.00028768,2]
[314147648,1708023042360,-14602.74,0.00028768,2]
[314147649,1708023042369,-24471.63,0.00028768,2]
[314147650,1708023042379,-510.99279299,0.00028769,2]
[314147651,1708023042388,-929.89,0.00028769,2]
[314147652,1708023042398,-500.0,0.00028769,2]
[314147653,1708023042407,-500.0,0.00028769,2]
[314147654,1708023042416,-500.0,0.00028769,2]
[314147655,1708023042426,-831.41,0.00028769,2]
[314147656,1708023042436,-500.0,0.00028769,2]
[314147657,1708023042448,-602.02,0.00028769,2]
[314147658,1708023042457,-500.0,0.00028769,2]
[314147659,1708023042466,-500.0,0.00028769,2]
[314147660,1708023042477,-1209.01,0.00028769,2]
[314147661,1708023042486,-500.0,0.00028769,2]
[314147662,1708023042495,-500.0,0.00028769,2]
[314147663,1708023042505,-3809.39,0.00028769,2]
[314147664,1708023042515,-500.0,0.00028769,2]
[314147665,1708023042525,-500.0,0.00028769,2]
[314147666,1708023042536,-1895.71,0.00028769,2]
[314147667,1708023042546,-376.30669762,0.00028769,2]
[314147668,1708023042555,-500.0,0.00028769,2]
[314147669,1708023042565,-500.0,0.00028769,2]
[314147670,1708023042574,-1237.71,0.00028769,2]
[314147671,1708023042583,-502.53956151,0.00028769,2]
[314147672,1708023042592,-1424.79,0.00028769,2]
[314147673,1708023042602,-500.0,0.00028769,2]
[314147674,1708023042611,-500.0,0.00028769,2]
[314147675,1708023042620,-2065.46,0.00028769,2]
[314147676,1708023042629,-500.0,0.00028769,2]
[314147677,1708023042638,-532.10150668,0.00028769,2]
[314147678,1708023042648,-3199.03,0.00028769,2]
[314147679,1708023042656,-500.0,0.00028769,2]
[314147680,1708023042665,-500.0,0.00028769,2]
[314147681,1708023042674,-491.43111383,0.00028769,2]
[314147682,1708023042684,-299.7793915,0.00028769,2]
[314147683,1708023042693,-1847.13,0.0002877,2]
[314147684,1708023042703,-292.01398535,0.0002877,2]
[314147685,1708023042712,-500.0,0.0002877,2]
[314147686,1708023042722,-500.0,0.0002877,2]
[314147687,1708023042731,-500.0,0.0002877,2]
[314147688,1708023042740,-500.0,0.0002877,2]
[314147689,1708023042750,-500.0,0.0002877,2]
[314147690,1708023042759,-500.0,0.0002877,2]
[314147691,1708023042768,-500.0,0.0002877,2]
[314147692,1708023042777,-989.49,0.0002877,2]
[314147693,1708023042787,-500.0,0.0002877,2]
[314147694,1708023042796,-746.79,0.0002877,2]
[314147695,1708023042805,-557.04962915,0.0002877,2]
[314147696,1708023042814,-500.0,0.0002877,2]
[314147697,1708023042823,-500.0,0.0002877,2]
[314147698,1708023042832,-500.0,0.0002877,2]
[314147699,1708023042841,-2720.81,0.0002877,2]
[314147700,1708023042851,-500.0,0.0002877,2]
[314147701,1708023042860,-1742.09,0.0002877,2]
[314147702,1708023042870,-609.52,0.0002877,2]
[314147703,1708023042879,-2991.52781642,0.0002877,2]
[314147709,1708023043127,-2094.96365959,0.0002877,2]
[314147740,1708023046465,-500.0,0.00028632,2]
[314147742,1708023046477,-503.20591814,0.0002877,2]
[314147757,1708023046986,-3.75269944,0.0002877,2]
[314147762,1708023140060,-4395.56,0.0002099,3]
[314147763,1708023140082,-243460.44,0.00021,2]
[314147769,1708023258822,154.93802479,0.000176,2]
[314147772,1708023452737,158.528838,0.00030959,120]
[314147843,1708024232631,-250.0,0.00020064,2]
[314147845,1708024232641,-241.01253246,0.00020155,2]
[314148001,1708024238631,-1228.28652,0.00020155,2]
[314148003,1708024238643,-419.90951034,0.00020155,2]
[314148009,1708024238690,-6075.8646111,0.00020155,2]
[314148011,1708024238699,-24900.0,0.00020845,2]
[314148013,1708024238708,-6146.70626066,0.00020889,2]
[314148014,1708024238717,-48202.7902207,0.00020915,2]
[314148016,1708024238727,-1456.8751199,0.00021038,2]
[314148018,1708024238736,-1715.8749224,0.00021123,2]
[314148020,1708024238745,-200.1754723,0.00021179,2]
[314148022,1708024238755,-200.0,0.00021333,7]
[314148024,1708024238764,-200.0,0.00021333,7]
[314148026,1708024238775,-169.725628,0.00021611,2]
[314148028,1708024238786,-161.5894657,0.000219,2]
[314148030,1708024238795,-256.22157654,0.00022,2]
[314148032,1708024238804,-200.0,0.00023466,7]
[314148034,1708024238814,-360.0,0.00023466,7]
[314148036,1708024238824,-570.6265471,0.00023546,2]
[314148038,1708024238833,-20488.1684435,0.00023911,2]
[314148040,1708024238843,-570.62654708,0.00023948,2]
[314148042,1708024238852,-792.31320463,0.00024,2]
[314148044,1708024238862,-570.62654708,0.00024351,2]
[314148046,1708024238871,-167.036589,0.00024658,2]
[314148048,1708024238880,-570.62654708,0.00024753,2]
[314148050,1708024238889,-793.95868717,0.000249,5]
[314148052,1708024238897,-250.0,0.00024991,2]
[314148054,1708024238906,-461.98217731,0.00024991,2]
[314148056,1708024238916,-368.37442533,0.00024991,2]
[314148058,1708024238925,-500.0,0.00024991,2]
[314148060,1708024238934,-1836.31004484,0.00024991,2]
[314148062,1708024238944,-469.59646068,0.00024991,2]
[314148064,1708024238953,-500.0,0.00024991,2]
[314148066,1708024238962,-1836.31004484,0.00024991,2]
[314148068,1708024238971,-1836.31004484,0.00024991,2]
[314148070,1708024238979,-500.0,0.00024991,2]
[314148071,1708024238989,-1836.31004484,0.00024991,2]
[314148073,1708024238998,-473.94695713,0.00024991,2]
[314148075,1708024239007,-1836.31004484,0.00024991,2]
[314148077,1708024239016,-500.0,0.00024991,2]
[314148079,1708024239025,-1836.31004484,0.00024991,2]
[314148081,1708024239035,-1836.31004484,0.00024991,2]
[314148083,1708024239044,-500.0,0.00024991,2]
[314148085,1708024239053,-1836.31004484,0.00024991,2]
[314148087,1708024239061,-500.0,0.00024991,2]
[314148089,1708024239070,-1836.31004484,0.00024991,2]
[314148091,1708024239079,-500.0,0.00024991,2]
[314148092,1708024239088,-1836.31004484,0.00024991,2]
[314148095,1708024239097,-500.0,0.00024991,2]
[314148096,1708024239106,-1836.31004484,0.00024991,2]
[314148099,1708024239117,-500.0,0.00024991,2]
[314148100,1708024239126,-1836.31004484,0.00024991,2]
[314148102,1708024239136,-500.0,0.00024991,2]
[314148104,1708024239145,-1836.31004484,0.00024991,2]
[314148106,1708024239156,-500.0,0.00024991,2]
[314148108,1708024239166,-1836.31004484,0.00024991,2]
[314148110,1708024239175,-1836.31004484,0.00024991,2]
[314148113,1708024239185,-1836.31004484,0.00024991,2]
[314148115,1708024239195,-1836.31004484,0.00024991,2]
[314148117,1708024239205,-1836.31004484,0.00024991,2]
[314148119,1708024239216,-1836.31004484,0.00024991,2]
[314148121,1708024239227,-1836.31004484,0.00024991,2]
[314148122,1708024239236,-1836.31004484,0.00024991,2]
[314148124,1708024239245,-1836.31004484,0.00024991,2]
[314148126,1708024239255,-1836.31004484,0.00024991,2]
[314148128,1708024239264,-1836.31004484,0.00024991,2]
[314148130,1708024239274,-1836.31004484,0.00024991,2]
[314148132,1708024239285,-1836.31004484,0.00024991,2]
[314148134,1708024239295,-1836.31004484,0.00024991,2]
[314148136,1708024239304,-1836.31004484,0.00024991,2]
[314148138,1708024239314,-1836.31004484,0.00024991,2]
[314148140,1708024239324,-1836.31004484,0.00024991,2]
[314148142,1708024239333,-1836.31004484,0.00024991,2]
[314148144,1708024239342,-1836.31004484,0.00024991,2]
[314148146,1708024239352,-1836.31004484,0.00024991,2]
[314148148,1708024239361,-1836.31004484,0.00024991,2]
[314148150,1708024239371,-1836.31004484,0.00024991,2]
[314148152,1708024239380,-1836.31004484,0.00024991,2]
[314148154,1708024239389,-1836.31004484,0.00024991,2]
[314148156,1708024239399,-1836.31004484,0.00024991,2]
[314148158,1708024239408,-1836.31004484,0.00024991,2]
[314148160,1708024239417,-221.81971649,0.00024991,2]
[314148162,1708024239427,-1836.31004484,0.00024991,2]